[Event "Titled Tuesday Blitz November 01 Early 2022"]
[White "Buscar, Michael"]
[Black "De Souza, Cristiano Gomes"]
[WhiteFideId "2603616"]
[BlackFideId "2151758"]
[WhiteElo "2010"]
[BlackElo "2068"]
[Result "1-0"]
[Round "08"]
[TimeControl "180+1"]
[Date "2022.11.02"]
[WhiteClock "0:01:04"]
[BlackClock "0:00:53"]

1. d4 {[%clk 0:03:00]}  Nf6 {[%clk 0:02:57]} 2. c4 {[%clk 0:03:00]}  d6 {[%clk 0:02:54]} 3. Nc3 {[%clk 0:03:00]}  h6 {[%clk 0:02:54]} 4. Nf3 {[%clk 0:02:59]}  Bg4 {[%clk 0:02:50]} 5. e4 {[%clk 0:02:59]}  Nbd7 {[%clk 0:02:49]} 6. Be2 {[%clk 0:02:59]}  e5 {[%clk 0:02:49]} 7. Be3 {[%clk 0:02:58]}  g6 {[%clk 0:02:44]} 8. d5 {[%clk 0:02:46]}  Bg7 {[%clk 0:02:44]} 9. Qd2 {[%clk 0:02:44]}  h5 {[%clk 0:02:43]} 10. h3 {[%clk 0:02:42]}  Bxf3 {[%clk 0:02:42]} 11. Bxf3 {[%clk 0:02:40]}  O-O {[%clk 0:02:42]} 12. g4 {[%clk 0:02:38]}  hxg4 {[%clk 0:02:40]} 13. hxg4 {[%clk 0:02:38]}  Re8 {[%clk 0:02:38]} 14. Bh6 {[%clk 0:02:38]}  Bh8 {[%clk 0:02:35]} 15. O-O-O {[%clk 0:02:24]}  a5 {[%clk 0:02:32]} 16. Rh2 {[%clk 0:02:22]}  Nc5 {[%clk 0:02:19]} 17. Rdh1 {[%clk 0:02:21]}  a4 {[%clk 0:02:15]} 18. Qg5 {[%clk 0:01:43]}  Nh7 {[%clk 0:02:08]} 19. Qe3 {[%clk 0:01:43]}  Bf6 {[%clk 0:02:00]} 20. g5 {[%clk 0:01:32]}  Nxg5 {[%clk 0:01:32]} 21. Kb1 {[%clk 0:01:24]}  Nxf3 {[%clk 0:01:19]} 22. Qxf3 {[%clk 0:01:23]}  c6 {[%clk 0:00:53]} 23. Bg5 {[%clk 0:01:04]} 1-0


[Site "https://www.chess.com"]

[Event "Titled Tuesday Blitz November 01 Early 2022"]
[White "Celestino, Rafael Teixeira"]
[Black "Fernandez Siles, Luis"]
[WhiteFideId "2108925"]
[BlackFideId "2209420"]
[WhiteElo "2430"]
[BlackElo "2186"]
[Result "0-1"]
[Round "08"]
[TimeControl "180+1"]
[Date "2022.11.02"]
[WhiteClock "0:00:06"]
[BlackClock "0:00:25"]

1. e4 {[%clk 0:03:00]}  c5 {[%clk 0:02:59]} 2. Nf3 {[%clk 0:03:00]}  Nc6 {[%clk 0:02:59]} 3. c3 {[%clk 0:02:59]}  d5 {[%clk 0:02:56]} 4. e5 {[%clk 0:02:56]}  Bg4 {[%clk 0:02:46]} 5. Bb5 {[%clk 0:02:55]}  Qb6 {[%clk 0:02:37]} 6. Bxc6+ {[%clk 0:02:31]}  Qxc6 {[%clk 0:02:30]} 7. d4 {[%clk 0:02:29]}  cxd4 {[%clk 0:02:17]} 8. cxd4 {[%clk 0:02:25]}  Bxf3 {[%clk 0:02:16]} 9. gxf3 {[%clk 0:02:26]}  Rc8 {[%clk 0:02:09]} 10. Nc3 {[%clk 0:02:25]}  e6 {[%clk 0:02:05]} 11. a3 {[%clk 0:02:24]}  Ne7 {[%clk 0:02:05]} 12. Rg1 {[%clk 0:02:08]}  Nf5 {[%clk 0:02:05]} 13. Be3 {[%clk 0:01:59]}  Be7 {[%clk 0:02:02]} 14. Rc1 {[%clk 0:01:52]}  O-O {[%clk 0:01:50]} 15. Qd3 {[%clk 0:01:49]}  Qc4 {[%clk 0:01:42]} 16. Ke2 {[%clk 0:00:50]}  Qb3 {[%clk 0:01:32]} 17. Rc2 {[%clk 0:00:41]}  Rc4 {[%clk 0:01:25]} 18. Rcc1 {[%clk 0:00:14]}  Qxb2+ {[%clk 0:01:14]} 19. Rc2 {[%clk 0:00:13]}  Qxa3 {[%clk 0:01:11]} 20. Rgc1 {[%clk 0:00:09]}  Qa6 {[%clk 0:00:59]} 21. Ke1 {[%clk 0:00:08]}  Rfc8 {[%clk 0:00:58]} 22. Qe2 {[%clk 0:00:04]}  h6 {[%clk 0:00:54]} 23. Qd3 {[%clk 0:00:04]}  b5 {[%clk 0:00:53]} 24. Kf1 {[%clk 0:00:03]}  b4 {[%clk 0:00:54]} 25. Ne2 {[%clk 0:00:03]}  Qc6 {[%clk 0:00:49]} 26. Rxc4 {[%clk 0:00:01]}  dxc4 {[%clk 0:00:49]} 27. Qb1 {[%clk 0:00:02]}  Qxf3 {[%clk 0:00:47]} 28. Ng3 {[%clk 0:00:02]}  Nxe3+ {[%clk 0:00:45]} 29. Ke1 {[%clk 0:00:02]}  Nd5 {[%clk 0:00:38]} 30. Qc2 {[%clk 0:00:02]}  b3 {[%clk 0:00:36]} 31. Qd2 {[%clk 0:00:01]}  c3 {[%clk 0:00:33]} 32. Qe2 {[%clk 0:00:02]}  Qxe2+ {[%clk 0:00:31]} 33. Kxe2 {[%clk 0:00:03]}  b2 {[%clk 0:00:32]} 34. Rg1 {[%clk 0:00:04]}  c2 {[%clk 0:00:31]} 35. Nh5 {[%clk 0:00:04]}  c1=Q {[%clk 0:00:28]} 36. Rxg7+ {[%clk 0:00:05]}  Kf8 {[%clk 0:00:28]} 37. Rh7 {[%clk 0:00:05]}  Rc2+ {[%clk 0:00:28]} 38. Kf3 {[%clk 0:00:05]}  Qd1+ {[%clk 0:00:26]} 39. Kg2 {[%clk 0:00:05]}  Qxh5 {[%clk 0:00:26]} 40. Rh8+ {[%clk 0:00:05]}  Kg7 {[%clk 0:00:27]} 41. Rb8 {[%clk 0:00:06]}  Nf4+ {[%clk 0:00:26]} 42. Kf1 {[%clk 0:00:06]}  Qd1# {[%clk 0:00:25]} 0-1


[Site "https://www.chess.com"]

[Event "Titled Tuesday Blitz November 01 Early 2022"]
[White "Chan, Kim Yew"]
[Black "Romero Ruscalleda, Josep"]
[WhiteFideId "5717981"]
[BlackFideId "2231859"]
[WhiteElo "2206"]
[BlackElo "2284"]
[Result "1/2-1/2"]
[Round "08"]
[TimeControl "180+1"]
[Date "2022.11.02"]
[WhiteClock "0:00:14"]
[BlackClock "0:01:03"]

1. d4 {[%clk 0:03:00]}  g6 {[%clk 0:03:00]} 2. e4 {[%clk 0:02:59]}  Bg7 {[%clk 0:03:01]} 3. Nf3 {[%clk 0:02:59]}  d6 {[%clk 0:03:02]} 4. c3 {[%clk 0:02:59]}  Nf6 {[%clk 0:03:01]} 5. Bd3 {[%clk 0:02:59]}  O-O {[%clk 0:03:01]} 6. O-O {[%clk 0:02:58]}  Nbd7 {[%clk 0:03:00]} 7. Re1 {[%clk 0:02:49]}  e5 {[%clk 0:03:00]} 8. h3 {[%clk 0:02:49]}  b6 {[%clk 0:02:57]} 9. a4 {[%clk 0:02:46]}  a5 {[%clk 0:02:57]} 10. Nbd2 {[%clk 0:02:46]}  Bb7 {[%clk 0:02:57]} 11. Nf1 {[%clk 0:02:43]}  Re8 {[%clk 0:02:55]} 12. Ng3 {[%clk 0:02:43]}  d5 {[%clk 0:02:37]} 13. dxe5 {[%clk 0:02:18]}  Nxe4 {[%clk 0:02:36]} 14. Nxe4 {[%clk 0:02:04]}  dxe4 {[%clk 0:02:36]} 15. Bxe4 {[%clk 0:02:04]}  Bxe4 {[%clk 0:02:36]} 16. Rxe4 {[%clk 0:02:05]}  Nxe5 {[%clk 0:02:33]} 17. Qxd8 {[%clk 0:01:54]}  Nxf3+ {[%clk 0:02:32]} 18. gxf3 {[%clk 0:01:49]}  Raxd8 {[%clk 0:02:32]} 19. Bf4 {[%clk 0:01:49]}  Rxe4 {[%clk 0:02:10]} 20. fxe4 {[%clk 0:01:50]}  Rd7 {[%clk 0:02:10]} 21. f3 {[%clk 0:01:30]}  Bf8 {[%clk 0:02:09]} 22. Kf2 {[%clk 0:01:29]}  Bc5+ {[%clk 0:02:09]} 23. Ke2 {[%clk 0:01:30]}  f6 {[%clk 0:02:10]} 24. Rb1 {[%clk 0:01:21]}  Kf7 {[%clk 0:02:07]} 25. b4 {[%clk 0:01:21]}  axb4 {[%clk 0:01:59]} 26. cxb4 {[%clk 0:01:22]}  Bd6 {[%clk 0:01:58]} 27. Rd1 {[%clk 0:00:59]}  Ke6 {[%clk 0:01:57]} 28. Bxd6 {[%clk 0:00:59]}  cxd6 {[%clk 0:01:57]} 29. Rd5 {[%clk 0:00:57]}  Ra7 {[%clk 0:01:57]} 30. a5 {[%clk 0:00:53]}  bxa5 {[%clk 0:01:55]} 31. bxa5 {[%clk 0:00:53]}  f5 {[%clk 0:01:53]} 32. Rb5 {[%clk 0:00:50]}  fxe4 {[%clk 0:01:52]} 33. fxe4 {[%clk 0:00:51]}  Kd7 {[%clk 0:01:48]} 34. Kd3 {[%clk 0:00:51]}  Kc6 {[%clk 0:01:48]} 35. Kc4 {[%clk 0:00:50]}  Re7 {[%clk 0:01:45]} 36. Rb6+ {[%clk 0:00:49]}  Kc7 {[%clk 0:01:46]} 37. Kd4 {[%clk 0:00:42]}  Re5 {[%clk 0:01:46]} 38. Ra6 {[%clk 0:00:41]}  Rh5 {[%clk 0:01:41]} 39. Ra7+ {[%clk 0:00:32]}  Kc6 {[%clk 0:01:41]} 40. Ra6+ {[%clk 0:00:27]}  Kc7 {[%clk 0:01:36]} 41. Ra7+ {[%clk 0:00:27]}  Kc6 {[%clk 0:01:36]} 42. Rg7 {[%clk 0:00:15]}  Rxh3 {[%clk 0:01:35]} 43. a6 {[%clk 0:00:15]}  Ra3 {[%clk 0:01:33]} 44. a7 {[%clk 0:00:14]}  Ra4+ {[%clk 0:01:32]} 45. Ke3 {[%clk 0:00:13]}  h5 {[%clk 0:01:31]} 46. Kf3 {[%clk 0:00:10]}  Ra3+ {[%clk 0:01:28]} 47. Kf4 {[%clk 0:00:10]}  h4 {[%clk 0:01:29]} 48. Kg4 {[%clk 0:00:09]}  h3 {[%clk 0:01:29]} 49. Rxg6 {[%clk 0:00:08]}  h2 {[%clk 0:01:27]} 50. Rh6 {[%clk 0:00:08]}  Rxa7 {[%clk 0:01:26]} 51. Rxh2 {[%clk 0:00:08]}  Rf7 {[%clk 0:01:26]} 52. Rh5 {[%clk 0:00:07]}  Kd7 {[%clk 0:01:25]} 53. Rh6 {[%clk 0:00:07]}  Ke7 {[%clk 0:01:24]} 54. Rg6 {[%clk 0:00:07]}  Rf1 {[%clk 0:01:24]} 55. Rh6 {[%clk 0:00:07]}  Kd7 {[%clk 0:01:24]} 56. Rg6 {[%clk 0:00:06]}  Ke7 {[%clk 0:01:24]} 57. Rh6 {[%clk 0:00:06]}  Kd7 {[%clk 0:01:25]} 58. Kg5 {[%clk 0:00:06]}  Re1 {[%clk 0:01:22]} 59. Kf4 {[%clk 0:00:06]}  Kc6 {[%clk 0:01:21]} 60. Rh5 {[%clk 0:00:06]}  Rf1+ {[%clk 0:01:21]} 61. Ke3 {[%clk 0:00:06]}  Kd7 {[%clk 0:01:20]} 62. Rd5 {[%clk 0:00:06]}  Ke6 {[%clk 0:01:20]} 63. Ke2 {[%clk 0:00:06]}  Ra1 {[%clk 0:01:19]} 64. Rd4 {[%clk 0:00:06]}  Ke5 {[%clk 0:01:19]} 65. Rd5+ {[%clk 0:00:07]}  Ke6 {[%clk 0:01:19]} 66. Rd4 {[%clk 0:00:07]}  Ra3 {[%clk 0:01:19]} 67. Rd3 {[%clk 0:00:07]}  Ra5 {[%clk 0:01:17]} 68. Ke3 {[%clk 0:00:07]}  Rh5 {[%clk 0:01:17]} 69. Kd4 {[%clk 0:00:08]}  Rh4 {[%clk 0:01:16]} 70. Rg3 {[%clk 0:00:08]}  Kd7 {[%clk 0:01:16]} 71. Rg8 {[%clk 0:00:07]}  Ke6 {[%clk 0:01:15]} 72. Re8+ {[%clk 0:00:07]}  Kd7 {[%clk 0:01:15]} 73. Ra8 {[%clk 0:00:07]}  Ke6 {[%clk 0:01:15]} 74. Ra7 {[%clk 0:00:07]}  Rh1 {[%clk 0:01:14]} 75. Ra8 {[%clk 0:00:07]}  Rd1+ {[%clk 0:01:14]} 76. Ke3 {[%clk 0:00:08]}  Rb1 {[%clk 0:01:14]} 77. Re8+ {[%clk 0:00:07]}  Kd7 {[%clk 0:01:13]} 78. Rh8 {[%clk 0:00:08]}  Kc6 {[%clk 0:01:13]} 79. Kd4 {[%clk 0:00:08]}  Rb4+ {[%clk 0:01:13]} 80. Kd3 {[%clk 0:00:09]}  Ra4 {[%clk 0:01:12]} 81. Rh5 {[%clk 0:00:09]}  Ra3+ {[%clk 0:01:11]} 82. Kd4 {[%clk 0:00:09]}  Ra4+ {[%clk 0:01:11]} 83. Kd3 {[%clk 0:00:09]}  Kd7 {[%clk 0:01:10]} 84. Ke3 {[%clk 0:00:10]}  Ke6 {[%clk 0:01:10]} 85. Kd3 {[%clk 0:00:10]}  Kf6 {[%clk 0:01:09]} 86. Ke3 {[%clk 0:00:11]}  Rb4 {[%clk 0:01:08]} 87. Kd3 {[%clk 0:00:11]}  Ke6 {[%clk 0:01:09]} 88. Ke3 {[%clk 0:00:11]}  Kf6 {[%clk 0:01:08]} 89. Kd3 {[%clk 0:00:12]}  Ke7 {[%clk 0:01:08]} 90. Ke3 {[%clk 0:00:12]}  Kd7 {[%clk 0:01:09]} 91. Kd3 {[%clk 0:00:13]}  Kc6 {[%clk 0:01:09]} 92. Rh6 {[%clk 0:00:13]}  Rb3+ {[%clk 0:01:06]} 93. Kc4 {[%clk 0:00:13]}  Re3 {[%clk 0:01:05]} 94. Kd4 {[%clk 0:00:13]}  Re1 {[%clk 0:01:05]} 95. Rh8 {[%clk 0:00:14]}  Rd1+ {[%clk 0:01:05]} 96. Ke3 {[%clk 0:00:14]}  Kc5 {[%clk 0:01:05]} 97. Rc8+ {[%clk 0:00:14]}  Kb4 {[%clk 0:01:03]} 98. Rc6 {[%clk 0:00:14]}  Kb5 {[%clk 0:01:03]} 99. Rc8 {[%clk 0:00:14]}  Kb6 {[%clk 0:01:03]} 100. Kf4 {[%clk 0:00:14]}  Kb7 {[%clk 0:01:03]} 101. Rc3 {[%clk 0:00:14]} 1/2-1/2


[Site "https://www.chess.com"]

[Event "Titled Tuesday Blitz November 01 Early 2022"]
[White "Costachi, Mihnea"]
[Black "Myshakov, Fyodor"]
[WhiteFideId "1217518"]
[BlackFideId "14111284"]
[WhiteElo "2437"]
[BlackElo "2310"]
[Result "1-0"]
[Round "08"]
[TimeControl "180+1"]
[Date "2022.11.02"]
[WhiteClock "0:02:04"]
[BlackClock "0:00:21"]

1. Nc3 {[%clk 0:03:00]}  d5 {[%clk 0:02:55]} 2. d4 {[%clk 0:03:00]}  Nf6 {[%clk 0:02:55]} 3. Bf4 {[%clk 0:03:00]}  c6 {[%clk 0:02:50]} 4. f3 {[%clk 0:02:56]}  Bf5 {[%clk 0:02:48]} 5. g4 {[%clk 0:02:56]}  Bg6 {[%clk 0:02:47]} 6. h4 {[%clk 0:02:55]}  h6 {[%clk 0:02:47]} 7. h5 {[%clk 0:02:55]}  Bh7 {[%clk 0:02:46]} 8. e3 {[%clk 0:02:56]}  e6 {[%clk 0:02:46]} 9. Bd3 {[%clk 0:02:56]}  Bxd3 {[%clk 0:02:44]} 10. Qxd3 {[%clk 0:02:57]}  Bd6 {[%clk 0:02:44]} 11. Nge2 {[%clk 0:02:56]}  Qc7 {[%clk 0:02:40]} 12. Bxd6 {[%clk 0:02:56]}  Qxd6 {[%clk 0:02:41]} 13. e4 {[%clk 0:02:57]}  dxe4 {[%clk 0:02:37]} 14. Nxe4 {[%clk 0:02:58]}  Nxe4 {[%clk 0:02:35]} 15. fxe4 {[%clk 0:02:59]}  Nd7 {[%clk 0:02:33]} 16. O-O-O {[%clk 0:02:58]}  O-O-O {[%clk 0:02:31]} 17. Rhf1 {[%clk 0:02:59]}  Rhf8 {[%clk 0:02:30]} 18. e5 {[%clk 0:02:55]}  Qb4 {[%clk 0:02:25]} 19. Qh7 {[%clk 0:02:48]}  Nb6 {[%clk 0:02:21]} 20. a3 {[%clk 0:02:42]}  Qc4 {[%clk 0:02:13]} 21. Nc3 {[%clk 0:02:38]}  Rxd4 {[%clk 0:02:04]} 22. Qxg7 {[%clk 0:02:38]}  Rfd8 {[%clk 0:01:52]} 23. Qxf7 {[%clk 0:02:37]}  Rxd1+ {[%clk 0:01:48]} 24. Rxd1 {[%clk 0:02:35]}  Rxd1+ {[%clk 0:01:48]} 25. Nxd1 {[%clk 0:02:36]}  Qxg4 {[%clk 0:01:48]} 26. Qf8+ {[%clk 0:02:36]}  Kc7 {[%clk 0:01:45]} 27. Qxh6 {[%clk 0:02:36]}  Nc4 {[%clk 0:01:42]} 28. Qh7+ {[%clk 0:02:28]}  Kb6 {[%clk 0:01:37]} 29. Qd3 {[%clk 0:02:27]}  Qg5+ {[%clk 0:01:22]} 30. Kb1 {[%clk 0:02:25]}  Nxe5 {[%clk 0:01:21]} 31. Qd4+ {[%clk 0:02:21]}  Kc7 {[%clk 0:01:19]} 32. h6 {[%clk 0:02:20]}  Qh5 {[%clk 0:01:16]} 33. h7 {[%clk 0:02:17]}  Nf7 {[%clk 0:01:03]} 34. Qf4+ {[%clk 0:02:05]}  Kb6 {[%clk 0:01:01]} 35. Qxf7 {[%clk 0:02:05]}  Qxd1+ {[%clk 0:01:00]} 36. Ka2 {[%clk 0:02:05]}  Qd5+ {[%clk 0:00:59]} 37. b3 {[%clk 0:02:05]}  Qe5 {[%clk 0:00:26]} 38. Qg8 {[%clk 0:02:03]}  Qc3 {[%clk 0:00:21]} 39. h8=Q {[%clk 0:02:04]}  Qxc2+ {[%clk 0:00:21]} 40. Qb2 {[%clk 0:02:04]} 1-0


[Site "https://www.chess.com"]

[Event "Titled Tuesday Blitz November 01 Early 2022"]
[White "Cramling Bellon, Anna"]
[Black "Itkis, Boris"]
[WhiteFideId "32009232"]
[BlackFideId "1209167"]
[WhiteElo "1972"]
[BlackElo "2232"]
[Result "1-0"]
[Round "08"]
[TimeControl "180+1"]
[Date "2022.11.02"]
[WhiteClock "0:00:24"]
[BlackClock "0:00:26"]

1. d4 {[%clk 0:03:00]}  Nf6 {[%clk 0:02:59]} 2. c4 {[%clk 0:02:58]}  Nc6 {[%clk 0:02:59]} 3. Nf3 {[%clk 0:02:50]}  e6 {[%clk 0:03:00]} 4. Nc3 {[%clk 0:02:47]}  Bb4 {[%clk 0:03:00]} 5. Qc2 {[%clk 0:02:45]}  O-O {[%clk 0:03:00]} 6. e4 {[%clk 0:02:45]}  d6 {[%clk 0:03:00]} 7. Bg5 {[%clk 0:02:43]}  h6 {[%clk 0:02:53]} 8. Bh4 {[%clk 0:02:38]}  e5 {[%clk 0:02:46]} 9. dxe5 {[%clk 0:02:28]}  dxe5 {[%clk 0:02:45]} 10. Rd1 {[%clk 0:02:26]}  Qe7 {[%clk 0:02:34]} 11. Be2 {[%clk 0:02:21]}  Bg4 {[%clk 0:02:26]} 12. O-O {[%clk 0:02:15]}  Rad8 {[%clk 0:02:10]} 13. Nd5 {[%clk 0:02:12]}  Qe6 {[%clk 0:01:53]} 14. Bxf6 {[%clk 0:02:03]}  gxf6 {[%clk 0:01:52]} 15. Nxc7 {[%clk 0:02:02]}  Qc8 {[%clk 0:01:47]} 16. Nd5 {[%clk 0:02:00]}  Kg7 {[%clk 0:01:44]} 17. Nh4 {[%clk 0:00:45]}  Be6 {[%clk 0:00:43]} 18. Qd3 {[%clk 0:00:33]}  Nd4 {[%clk 0:00:29]} 19. Nxb4 {[%clk 0:00:26]}  Bxc4 {[%clk 0:00:26]} 20. Qxc4 {[%clk 0:00:24]} 1-0


[Site "https://www.chess.com"]

[Event "Titled Tuesday Blitz November 01 Early 2022"]
[White "Dominguez Perez, Leinier"]
[Black "Navara, David"]
[WhiteFideId "3503240"]
[BlackFideId "309095"]
[WhiteElo "2994"]
[BlackElo "2915"]
[Result "1-0"]
[Round "08"]
[TimeControl "180+1"]
[Date "2022.11.01"]
[WhiteClock "0:00:11"]
[BlackClock "0:00:01"]

1. e4 {[%clk 0:03:00]}  e5 {[%clk 0:03:00]} 2. Nf3 {[%clk 0:03:01]}  Nc6 {[%clk 0:03:00]} 3. Bc4 {[%clk 0:03:01]}  Bc5 {[%clk 0:02:59]} 4. c3 {[%clk 0:03:00]}  Nf6 {[%clk 0:03:00]} 5. d3 {[%clk 0:03:01]}  O-O {[%clk 0:02:58]} 6. O-O {[%clk 0:03:00]}  d6 {[%clk 0:02:58]} 7. Re1 {[%clk 0:02:58]}  a5 {[%clk 0:02:58]} 8. h3 {[%clk 0:02:55]}  h6 {[%clk 0:02:58]} 9. Nbd2 {[%clk 0:02:55]}  Be6 {[%clk 0:02:58]} 10. Bb5 {[%clk 0:02:55]}  Bb6 {[%clk 0:02:57]} 11. Nf1 {[%clk 0:02:48]}  Ne7 {[%clk 0:02:53]} 12. Ba4 {[%clk 0:02:48]}  Nd7 {[%clk 0:02:34]} 13. d4 {[%clk 0:02:37]}  f5 {[%clk 0:02:33]} 14. Bb3 {[%clk 0:02:26]}  Bxb3 {[%clk 0:02:30]} 15. Qxb3+ {[%clk 0:02:25]}  Kh8 {[%clk 0:02:29]} 16. exf5 {[%clk 0:02:13]}  Nxf5 {[%clk 0:02:18]} 17. dxe5 {[%clk 0:02:12]}  Nxe5 {[%clk 0:02:19]} 18. Nxe5 {[%clk 0:02:09]}  dxe5 {[%clk 0:02:15]} 19. Ne3 {[%clk 0:01:53]}  Qf6 {[%clk 0:01:53]} 20. Qc2 {[%clk 0:01:51]}  Nxe3 {[%clk 0:01:25]} 21. Bxe3 {[%clk 0:01:50]}  Bxe3 {[%clk 0:01:26]} 22. Rxe3 {[%clk 0:01:50]}  Rad8 {[%clk 0:01:26]} 23. Rae1 {[%clk 0:01:48]}  Rd5 {[%clk 0:01:19]} 24. c4 {[%clk 0:01:38]}  Rd4 {[%clk 0:01:19]} 25. Rxe5 {[%clk 0:01:37]}  Qd8 {[%clk 0:00:52]} 26. R1e2 {[%clk 0:01:17]}  b6 {[%clk 0:00:52]} 27. b3 {[%clk 0:01:10]}  Qd6 {[%clk 0:00:50]} 28. c5 {[%clk 0:01:06]}  Qf6 {[%clk 0:00:10]} 29. Re8 {[%clk 0:00:57]}  Rd8 {[%clk 0:00:09]} 30. Rxf8+ {[%clk 0:00:53]}  Qxf8 {[%clk 0:00:10]} 31. Re5 {[%clk 0:00:46]}  Qf4 {[%clk 0:00:08]} 32. Re2 {[%clk 0:00:35]}  Qd4 {[%clk 0:00:07]} 33. cxb6 {[%clk 0:00:22]}  Qd1+ {[%clk 0:00:08]} 34. Kh2 {[%clk 0:00:22]}  Qxc2 {[%clk 0:00:07]} 35. Rxc2 {[%clk 0:00:22]}  cxb6 {[%clk 0:00:08]} 36. Kg3 {[%clk 0:00:20]}  Rd3+ {[%clk 0:00:06]} 37. Kf4 {[%clk 0:00:19]}  Rd5 {[%clk 0:00:02]} 38. Ke4 {[%clk 0:00:18]}  Rb5 {[%clk 0:00:03]} 39. Rc4 {[%clk 0:00:17]}  Kh7 {[%clk 0:00:02]} 40. f4 {[%clk 0:00:17]}  h5 {[%clk 0:00:02]} 41. g4 {[%clk 0:00:17]}  hxg4 {[%clk 0:00:03]} 42. hxg4 {[%clk 0:00:18]}  g6 {[%clk 0:00:03]} 43. Rc7+ {[%clk 0:00:16]}  Kg8 {[%clk 0:00:03]} 44. f5 {[%clk 0:00:13]}  gxf5+ {[%clk 0:00:02]} 45. gxf5 {[%clk 0:00:14]}  a4 {[%clk 0:00:03]} 46. bxa4 {[%clk 0:00:12]}  Ra5 {[%clk 0:00:03]} 47. Rc4 {[%clk 0:00:10]}  Kf7 {[%clk 0:00:03]} 48. Kf4 {[%clk 0:00:10]}  Kf6 {[%clk 0:00:02]} 49. Rc6+ {[%clk 0:00:10]}  Kf7 {[%clk 0:00:01]} 50. Kg5 {[%clk 0:00:10]}  Rxa4 {[%clk 0:00:02]} 51. Rc7+ {[%clk 0:00:10]}  Kg8 {[%clk 0:00:02]} 52. Kg6 {[%clk 0:00:10]}  Rg4+ {[%clk 0:00:02]} 53. Kf6 {[%clk 0:00:11]}  Rg2 {[%clk 0:00:01]} 54. Rc8+ {[%clk 0:00:11]}  Kh7 {[%clk 0:00:01]} 55. Ra8 {[%clk 0:00:11]} 1-0


[Site "https://www.chess.com"]

[Event "Titled Tuesday Blitz November 01 Early 2022"]
[White "Donchenko, Alexander"]
[Black "Amgalantengis, Enkh-Amgalan"]
[WhiteFideId "24603295"]
[BlackFideId "4903536"]
[WhiteElo "2572"]
[BlackElo "1772"]
[Result "0-1"]
[Round "08"]
[TimeControl "180+1"]
[Date "2022.11.02"]
[WhiteClock "0:00:08"]
[BlackClock "0:01:17"]

1. e4 {[%clk 0:03:00]}  e5 {[%clk 0:02:58]} 2. Nf3 {[%clk 0:02:58]}  Nc6 {[%clk 0:02:58]} 3. Bb5 {[%clk 0:02:57]}  Nf6 {[%clk 0:02:57]} 4. d3 {[%clk 0:02:57]}  Bc5 {[%clk 0:02:54]} 5. c3 {[%clk 0:02:57]}  O-O {[%clk 0:02:52]} 6. Bxc6 {[%clk 0:02:53]}  bxc6 {[%clk 0:02:52]} 7. O-O {[%clk 0:02:50]}  Re8 {[%clk 0:02:50]} 8. Re1 {[%clk 0:02:46]}  Bb6 {[%clk 0:02:49]} 9. Nbd2 {[%clk 0:02:43]}  h6 {[%clk 0:02:49]} 10. Nc4 {[%clk 0:02:41]}  d6 {[%clk 0:02:49]} 11. h3 {[%clk 0:02:41]}  Be6 {[%clk 0:02:48]} 12. Nxb6 {[%clk 0:02:38]}  axb6 {[%clk 0:02:48]} 13. a3 {[%clk 0:02:37]}  Nh7 {[%clk 0:02:49]} 14. d4 {[%clk 0:02:35]}  Qf6 {[%clk 0:02:48]} 15. Be3 {[%clk 0:02:23]}  c5 {[%clk 0:02:48]} 16. dxe5 {[%clk 0:02:14]}  dxe5 {[%clk 0:02:48]} 17. b4 {[%clk 0:02:06]}  c4 {[%clk 0:02:39]} 18. a4 {[%clk 0:02:00]}  Rad8 {[%clk 0:02:39]} 19. Qe2 {[%clk 0:01:58]}  Rd3 {[%clk 0:02:40]} 20. Rec1 {[%clk 0:01:56]}  Bc8 {[%clk 0:02:31]} 21. Nd2 {[%clk 0:01:50]}  Qc6 {[%clk 0:02:26]} 22. Rc2 {[%clk 0:01:41]}  Bb7 {[%clk 0:02:24]} 23. a5 {[%clk 0:01:36]}  bxa5 {[%clk 0:02:23]} 24. Rxa5 {[%clk 0:01:36]}  Qg6 {[%clk 0:02:07]} 25. f3 {[%clk 0:01:31]}  Red8 {[%clk 0:01:54]} 26. Nxc4 {[%clk 0:01:27]}  Rd1+ {[%clk 0:01:53]} 27. Kh2 {[%clk 0:01:27]}  Ng5 {[%clk 0:01:53]} 28. Nxe5 {[%clk 0:01:24]}  Qh5 {[%clk 0:01:51]} 29. Ng4 {[%clk 0:01:15]}  Qg6 {[%clk 0:01:41]} 30. Rd2 {[%clk 0:01:10]}  R8xd2 {[%clk 0:01:38]} 31. Bxd2 {[%clk 0:01:10]}  Qd6+ {[%clk 0:01:36]} 32. e5 {[%clk 0:01:00]}  Qxd2 {[%clk 0:01:35]} 33. Qxd2 {[%clk 0:00:59]}  Rxd2 {[%clk 0:01:35]} 34. Kg3 {[%clk 0:00:59]}  Rd3 {[%clk 0:01:33]} 35. Ra7 {[%clk 0:00:55]}  Bxf3 {[%clk 0:01:33]} 36. gxf3 {[%clk 0:00:54]}  Rxf3+ {[%clk 0:01:33]} 37. Kg2 {[%clk 0:00:54]}  Rxc3 {[%clk 0:01:33]} 38. b5 {[%clk 0:00:48]}  h5 {[%clk 0:01:31]} 39. Nf2 {[%clk 0:00:46]}  Ne6 {[%clk 0:01:29]} 40. h4 {[%clk 0:00:42]}  Rc5 {[%clk 0:01:28]} 41. Rb7 {[%clk 0:00:28]}  Rxe5 {[%clk 0:01:27]} 42. Nd3 {[%clk 0:00:29]}  Re3 {[%clk 0:01:27]} 43. Nb4 {[%clk 0:00:27]}  Re4 {[%clk 0:01:26]} 44. Nd5 {[%clk 0:00:26]}  Rxh4 {[%clk 0:01:26]} 45. Nxc7 {[%clk 0:00:22]}  Nxc7 {[%clk 0:01:26]} 46. Rxc7 {[%clk 0:00:23]}  Rb4 {[%clk 0:01:26]} 47. Rc5 {[%clk 0:00:19]}  g6 {[%clk 0:01:24]} 48. Kg3 {[%clk 0:00:20]}  Kg7 {[%clk 0:01:24]} 49. Kh3 {[%clk 0:00:20]}  f6 {[%clk 0:01:23]} 50. Kg3 {[%clk 0:00:18]}  g5 {[%clk 0:01:22]} 51. Kf3 {[%clk 0:00:17]}  h4 {[%clk 0:01:22]} 52. Rc7+ {[%clk 0:00:16]}  Kg6 {[%clk 0:01:22]} 53. Rb7 {[%clk 0:00:16]}  Kf5 {[%clk 0:01:20]} 54. b6 {[%clk 0:00:15]}  Rb3+ {[%clk 0:01:20]} 55. Kf2 {[%clk 0:00:15]}  h3 {[%clk 0:01:21]} 56. Rh7 {[%clk 0:00:13]}  Rxb6 {[%clk 0:01:18]} 57. Rxh3 {[%clk 0:00:13]}  Rb2+ {[%clk 0:01:18]} 58. Kf1 {[%clk 0:00:13]}  Kg4 {[%clk 0:01:18]} 59. Ra3 {[%clk 0:00:11]}  f5 {[%clk 0:01:18]} 60. Rc3 {[%clk 0:00:10]}  f4 {[%clk 0:01:18]} 61. Ra3 {[%clk 0:00:10]}  f3 {[%clk 0:01:18]} 62. Ra5 {[%clk 0:00:10]}  Kf4 {[%clk 0:01:17]} 63. Ra8 {[%clk 0:00:09]}  Kg3 {[%clk 0:01:17]} 64. Ra1 {[%clk 0:00:08]}  g4 {[%clk 0:01:16]} 65. Kg1 {[%clk 0:00:07]}  Rg2+ {[%clk 0:01:16]} 66. Kf1 {[%clk 0:00:08]}  Rh2 {[%clk 0:01:17]} 0-1


[Site "https://www.chess.com"]